[Event "44th Chess Olympiad Open 2022"]
[Site "Chennai"]
[Date "2022.08.05"]
[Round "7.69"]
[White "Shawabke Ziyad"]
[Black "Gajadin, Dewperkash"]
[Result "0-1"]
[ECO "E61"]
[WhiteElo "1786"]
[BlackElo "1990"]
[Annotator "TA"]
[PlyCount "176"]
[EventDate "2022.07.29"]
[EventType "team-tourn"]
[EventCountry "IND"]
[SourceTitle "playchess.com"]
[Source "ChessBase"]
[SourceQuality "1"]
[WhiteTeam "Palestine"]
[BlackTeam "Surinam"]
[WhiteTeamCountry "PLE"]
[BlackTeamCountry "SUR"]
[TimeControl "40/5400+30:1800+30"]

{[%evp 18,176,90,61,68,54,60,57,75,49,74,64,65,19,67,69,70,53,37,39,60,59,100,100,109,68,144,100,108,107,97,96,105,72,69,79,159,109,125,98,92,79,70,44,45,42,102,92,93,92,85,82,117,7,11,9,9,8,15,0,0,0,0,0,0,0,0,0,10,6,2,0,0,0,0,0,0,0,0,0,39,39,42,0,0,0,0,0,0,0,0,0,0,0,0,-26,0,0,0,-173,0,-235,0,0,0,-213,0,-216,0,-200,0,0,0,0,0,0,0,0,0,0,0,0,0,-759,-701,-488,-418,-12842,-12843,-12843,-12843,-12844,-12844,-12845,-12845,-12845,-33,-12845,-12845,-12845,-12846,-12846,-12847,-12848,-12848,-12849,-12849,-27999,-27999,-27998,-27998,-27999,-27999,-27999,-27999,-27999,-27999,-27999,-27999,-27996,-27998]} 1. c4 {[%emt 0:01:52]} c5 {[%emt 0:00:11]} 2. Nf3 {[%emt 0:00:18]} Nf6 {[%emt 0:00:04]} 3. Nc3 {[%emt 0:00:16]} b6 {[%emt 0:04:46]} 4. e3 {[%emt 0:01:17]} g6 {[%emt 0:08:07]} 5. d4 {[%emt 0:00:32]} cxd4 {[%emt 0:00:48]} 6. exd4 {[%emt 0:00:22]} Bg7 {[%emt 0:00:09]} 7. Be2 {[%emt 0:06:45]} O-O {[%emt 0:00:55]} 8. O-O {[%emt 0:00:20]} Bb7 {[%emt 0:14:56]} 9. d5 {[%emt 0:01:37]} d6 {[%emt 0:05:12]} 10. h3 {[%emt 0:03:06]} Nbd7 {[%emt 0:05:07] E61: King's Indian: Early deviations for White, including Smyslov System.} 11. Be3 {[%emt 0:03:03]} Rc8 {[%emt 0:02:23]} 12. Rc1 {[%emt 0:02:36]} Nc5 {[%emt 0:04:38] [#] White is slightly better.} 13. b3 $146 {[%emt 0:01:28]} ({Predecessor:} 13. Nd4 a6 14. Bf3 Qc7 15. Qd2 Rfe8 16. Rfd1 e5 17. dxe6 fxe6 18. Bxb7 Nxb7 19. b3 {1-0 (41) Burlai,O (2376)-Zherebukh,Y (2005) Alushta 2004}) 13... Re8 {[%emt 0:02:26]} 14. Re1 {[%emt 0:03:13]} a6 {[%emt 0:17:57]} 15. Bf4 {[%emt 0:17:05]} (15. Ng5 $14 {is more appropriate.}) 15... Nfe4 {[%emt 0:11:36]} (15... e6 $11 {feels stronger.}) 16. Nxe4 $14 {[%emt 0:01:48]} Nxe4 {[%emt 0:00:00]} 17. Bf1 {[%emt 0:08:58][%cal Be2f1,Bf1g2,Bg2b7][%mdl 32]} Nf6 18. Qd2 {[%emt 0:18:42]} Nh5 {[%emt 0:05:30]} 19. Bh6 {[%emt 0:00:00]} Bh8 {[%emt 0:00:00]} 20. Nd4 {[%emt 0:00:00]} (20. Ng5 {feels hotter.} Bg7 21. Bxg7 Nxg7 22. Rcd1) 20... Qd7 {[%emt 0:07:43]} 21. g4 {[%emt 0:00:49]} Ng7 {[%emt 0:00:00]} (21... Nf6 $14) 22. Bg2 {[%emt 0:00:24]} e5 {[%emt 0:03:05]} 23. dxe6 {[%emt 0:02:28]} Nxe6 {[%emt 0:00:00]} 24. Bxb7 {[%emt 0:06:21]} Nxd4 {[%emt 0:08:36]} 25. Bg2 {[%emt 0:00:23]} Rxe1+ {[%emt 0:00:00]} 26. Rxe1 {[%emt 0:00:02]} Re8 {[%emt 0:00:00]} (26... b5 $142) 27. Be3 {[%emt 0:00:29] This bishop pair is nice.} (27. Rd1 $142 $1) 27... Qc7 $16 {[%emt 0:00:22]} 28. Rd1 {[%emt 0:01:11]} Ne6 {[%emt 0:00:00]} 29. Qd5 {[%emt 0:02:57]} ({Don't blunder} 29. Qxd6 $2 Rd8 30. Qd5 Rxd5 $19) 29... Be5 {[%emt 0:00:00]} 30. Qb7 {[%emt 0:01:50]} Qxb7 {[%emt 0:00:18]} 31. Bxb7 Nc5 {[%emt 0:00:26]} ({Black should try} 31... Rb8 $14 32. Bc6 (32. Bxa6 Ra8 $14) 32... Nf4) 32. Bg2 Rd8 {[%emt 0:00:28]} 33. f4 {[%emt 0:01:03]} Bc3 {[%emt 0:00:22]} 34. Kf2 {[%emt 0:03:32]} a5 {[%emt 0:00:17]} 35. Bd4 {[%emt 0:05:10]} (35. Bc6 $16) 35... Bxd4+ $11 {[%emt 0:00:22]} 36. Rxd4 {[%emt 0:00:03][%mdl 4096] Endgame KRB-KRN} Ne6 {[%emt 0:00:48]} 37. Re4 {[%emt 0:00:25]} Kg7 {[%emt 0:00:25]} 38. f5 {[%emt 0:03:32]} gxf5 {[%emt 0:00:22]} 39. gxf5 {[%emt 0:00:04]} Nc5 {[%emt 0:00:23]} 40. Rd4 {[%emt 0:00:44]} Kf6 {[%emt 0:00:22]} 41. Rd5 {[%emt 0:32:26]} Ke7 {[%emt 0:31:21]} 42. h4 {[%emt 0:00:00]} f6 43. Rd4 {[%emt 0:20:12]} Rg8 {[%emt 0:00:00]} 44. Bf3 {[%emt 0:00:00]} Nd7 {[%emt 0:05:40]} 45. Rg4 {[%emt 0:00:00]} Rxg4 {[%emt 0:00:00]} 46. Bxg4 {[%emt 0:00:00] KB-KN} Ne5 47. Be2 {[%emt 0:00:00]} Kd7 {[%emt 0:00:00]} 48. Ke3 {[%emt 0:00:00]} Kc6 {[%emt 0:04:34]} 49. Kd4 {[%emt 0:00:00]} Kd7 {[%emt 0:00:00]} 50. a3 {[%emt 0:03:30]} Nc6+ {[%emt 0:00:00]} 51. Ke4 {[%emt 0:00:00]} Ne7 {[%emt 0:00:00]} 52. Bf3 {[%emt 0:00:00]} d5+ 53. cxd5 {[%emt 0:04:43]} Kd6 {[%emt 0:00:00]} 54. Kf4 {[%emt 0:02:52]} Nxd5+ {[%emt 0:00:00]} 55. Ke4 {[%emt 0:00:14]} Kc5 {[%emt 0:00:00] aiming for ...Nc3+.} 56. Kd3 {[%emt 0:00:00] Against Nc3} Ne7 (56... Nc7 $5 {[%cal Rc7b5]}) 57. Ke4 {[%emt 0:01:40]} b5 {[%emt 0:00:00]} 58. Bd1 $2 {[%emt 0:00:00]} (58. Bh5 $11) 58... Nd5 $2 {[%emt 0:00:33]} (58... b4 $19 59. a4 Nc8) 59. Kd3 $2 {[%emt 0:00:00]} (59. Bh5 $11 {and White has nothing to worry.}) 59... Nf4+ {[%emt 0:00:00]} 60. Ke4 {[%emt 0:00:00]} Nd5 {[%emt 0:00:00] Against b4+. ...Nc3+ is the strong threat.} 61. Kd3 {[%emt 0:00:00] Prevents Nc3.} Ne7 {[%emt 0:00:39]} 62. Ke4 {[%emt 0:00:00]} Nc6 $2 {[%emt 0:00:00]} (62... b4 $19 63. a4 Nc8) 63. Kf4 $2 {[%emt 0:00:00] [#]} (63. Bh5 $11 {and White stays safe.}) 63... Ne5 $2 {[%emt 0:00:00]} ({Black should play} 63... b4 $1 $19 {[%cal Rb4a3]} 64. axb4+ Kxb4) 64. Ke4 {[%emt 0:00:00]} h6 {[%emt 0:00:00]} 65. Be2 {[%emt 0:00:00]} Nc6 {[%emt 0:00:00]} 66. Bd1 {[%emt 0:00:00]} b4 {[%emt 0:00:16]} 67. a4 Nd4 {[%emt 0:00:32]} 68. h5 {[%emt 0:00:00]} Nc6 {[%emt 0:00:32] Threatens to win with ...Nd4.} 69. Be2 $1 {[%emt 0:00:25]} Ne5 {[%emt 0:00:25] Hoping for ...Nf7.} 70. Bf1 $2 {[%emt 0:00:00][%mdl 8192] [#]} (70. Ke3 $11) 70... Nf7 $1 $19 {[%emt 0:00:12]} 71. Bc4 {[%emt 0:00:00]} Nd6+ {[%emt 0:00:32]} 72. Kd3 {[%emt 0:00:00]} (72. Kf3 $142) 72... Nxc4 {[%emt 0:00:03]} 73. bxc4 {[%emt 0:00:00] KP-KP} b3 {[%emt 0:00:15]} 74. Kc3 {[%emt 0:00:00]} b2 $1 {[%emt 0:00:08]} 75. Kxb2 {[%emt 0:00:00]} Kxc4 {K3P-K3P} 76. Ka3 {[%emt 0:00:00]} Kc3 {[%emt 0:00:31]} 77. Ka2 {[%emt 0:00:09] Loses the game.} Kb4 {[%emt 0:00:51]} 78. Kb2 {[%emt 0:00:00]} Kxa4 {[%emt 0:00:09] K3P-KPP} 79. Kc3 {[%emt 0:00:40]} Kb5 {[%emt 0:00:03]} 80. Kb3 {[%emt 0:00:00]} Kc5 {[%emt 0:00:09]} 81. Ka4 {[%emt 0:00:00]} Kd5 82. Kxa5 {[%emt 0:00:20] KPP-KPP} Ke5 {[%emt 0:01:24] Black mates.} 83. Kb4 {[%emt 0:00:00]} Kxf5 {[%emt 0:00:11]} 84. Kc4 {[%emt 0:00:15]} Kg4 {[%emt 0:00:10]} 85. Kd4 {[%emt 0:00:03]} f5 {[%emt 0:00:27][%cal Bf6f5,Bf5f4][%mdl 32]} 86. Ke3 {[%emt 0:00:00]} Kg3 87. Ke2 f4 {[%emt 0:01:31]} 88. Kf1 {[%emt 0:00:00]} Kf3 {[%emt 0:06:48] Weighted Error Value: White=0.32/Black=0.17 (very precise)} 0-1

[Event "44th Chess Olympiad Open 2022"]
[Site "Chennai"]
[Date "2022.08.05"]
[Round "7.70"]
[White "Alhassadi, Yousef A."]
[Black "Cisse, Amadou Lamine"]
[Result "1-0"]
[ECO "B22"]
[WhiteElo "2068"]
[BlackElo "2005"]
[Annotator "TA"]
[PlyCount "31"]
[EventDate "2022.07.29"]
[EventType "team-tourn"]
[EventCountry "IND"]
[SourceTitle "playchess.com"]
[Source "ChessBase"]
[SourceQuality "1"]
[WhiteTeam "Libya"]
[BlackTeam "Senegal"]
[WhiteTeamCountry "LBY"]
[BlackTeamCountry "SEN"]
[TimeControl "40/5400+30:1800+30"]

{[%evp 9,31,7,26,18,61,61,64,46,54,59,62,61,64,73,150,141,216,202,397,400,29997,1052,1291,1256]} 1. e4 {[%emt 0:00:03]} c5 {[%emt 0:00:18]} 2. c3 {[%emt 0:00:06]} d5 {[%emt 0:03:23]} 3. exd5 {[%emt 0:00:07]} Qxd5 {[%emt 0:00:25]} 4. Nf3 {[%emt 0:00:04]} Nc6 {[%emt 0:00:51]} 5. Na3 {[%emt 0:00:06]} Nf6 {[%emt 0:02:31]} 6. Bc4 {[%emt 0:03:27] B22: Sicilian: 2 c3.} Qe4+ {[%emt 0:01:26]} 7. Be2 $1 {[%emt 0:00:11]} Bg4 {[%emt 0:01:14]} 8. d3 {[%emt 0:02:36] White is slightly better.} Qd5 {[%emt 0:01:30]} 9. Nc4 {[%emt 0:02:07] [#]} Bh5 $146 {[%emt 0:05:29]} ({Predecessor:} 9... Qd7 10. O-O e6 11. Qb3 Qc7 12. Bf4 Qxf4 13. Qxb7 Rd8 14. Qxc6+ Nd7 15. Rfe1 Bxf3 16. Bxf3 {1-0 (24) Pap,M (2384)-Vucinic,G (2349) Vrnjacka Banja 2021}) 10. Qb3 {[%emt 0:06:50]} O-O-O {[%emt 0:03:20][%cal Og7g5]} 11. O-O {[%emt 0:00:31]} h6 {[%emt 0:03:46]} (11... e5 $142) 12. Bf4 $16 {[%emt 0:12:10] Threatens to win with Bg3. White is more active.} g5 {[%emt 0:03:52]} (12... Ne8 $16 {keeps fighting.}) 13. Bg3 $18 {[%emt 0:00:11] Hoping for Qa3.} Bg4 $2 {[%emt 0:04:55]} (13... Ne8) 14. Qa4 {[%emt 0:04:51][%cal Oa4a7] aiming for Qxa7!} ({Less strong is} 14. Qb6 Rd6 $18) (14. h3 Be6 15. Nfe5 (15. Qb6 Rd7 $16) 15... Nxe5 $18) 14... Bd7 {[%emt 0:04:55] [#]} (14... Nd7 $18 15. Ne3 Qe6) 15. Qxa7 $3 {[%emt 0:00:11][%mdl 512]} e5 {[%emt 0:10:35]} (15... Qd6 16. Qa4) 16. Nb6+ {[%emt 0:00:23] White took control after the opening.  Weighted Error Value: White=0.04 (flawless) /Black=1.07} 1-0

[Event "44th Chess Olympiad Open 2022"]
[Site "Chennai"]
[Date "2022.08.05"]
[Round "7.70"]
[White "Abugenda, Nagi"]
[Black "Wane, Al Hassane"]
[Result "1-0"]
[ECO "C56"]
[WhiteElo "1991"]
[BlackElo "1750"]
[Annotator "TA"]
[PlyCount "91"]
[EventDate "2022.07.29"]
[EventType "team-tourn"]
[EventCountry "IND"]
[SourceTitle "playchess.com"]
[Source "ChessBase"]
[SourceQuality "1"]
[WhiteTeam "Libya"]
[BlackTeam "Senegal"]
[WhiteTeamCountry "LBY"]
[BlackTeamCountry "SEN"]
[TimeControl "40/5400+30:1800+30"]

{[%evp 13,91,-6,-4,-38,-10,-6,-23,-16,0,0,0,-43,-34,-25,-37,-33,-2,0,-14,-2,-8,-14,6,-37,-34,-47,-18,-61,79,87,91,91,152,159,202,126,321,296,280,118,180,170,169,172,181,166,339,353,574,567,567,532,842,827,767,770,1533,1422,1682,1674,29977,29978,29977,29979,29980,29981,29981,29982,29980,29979,29984,29985,29985,29986,29986,29986,29991,29992,29992,29992]} 1. e4 {[%emt 0:00:04]} Nc6 {[%emt 0:00:27]} 2. Nf3 {[%emt 0:00:13]} e5 {[%emt 0:00:34]} 3. Bc4 {[%emt 0:00:33]} Be7 {[%emt 0:00:09]} 4. d4 {[%emt 0:00:15]} exd4 {[%emt 0:01:29]} 5. O-O {[%emt 0:00:15]} Nf6 {[%emt 0:00:10][%cal Bg8f6,Bf6e4,Be4g5][%mdl 32]} 6. e5 {[%emt 0:00:13]} Ne4 {[%emt 0:04:45]} 7. Re1 {[%emt 0:02:36]} d5 {[%emt 0:00:40]} 8. Bb5 {[%emt 0:00:08] C56: Two Knights: 4 d4 exd4 5 0-0 Nxe4.} (8. exd6 $5 Nxd6 9. Bd5 $11) 8... O-O {[%emt 0:00:24] Threatening ...Bg4.} 9. Bxc6 {[%emt 0:00:37]} bxc6 {[%emt 0:00:14]} 10. Nxd4 {[%emt 0:00:27] Black has an edge.} Qe8 {[%emt 0:03:03] [#]} 11. f3 $146 {[%emt 0:03:28]} ({Predecessor:} 11. c3 a5 12. a4 c5 13. Nb5 Qc6 14. c4 d4 15. Nxc7 Qxc7 16. Rxe4 Bb7 17. Re2 {1-0 (48) Cristofari,A-Savy,L (1960) Montpellier 1997}) 11... Ng5 {[%emt 0:02:47]} 12. f4 {[%emt 0:00:59]} Ne4 {[%emt 0:00:20]} 13. Be3 {[%emt 0:00:32]} c5 {[%emt 0:01:03]} (13... f6 {seems wilder.} 14. Nd2 fxe5 15. fxe5 Bh4) 14. Nb3 {[%emt 0:00:39]} c6 {[%emt 0:05:21]} (14... Qd7 {is interesting.} 15. c4 Bh4 16. Nxc5 Nxc5 17. Bxc5 Rd8) 15. N1d2 {[%emt 0:01:51]} (15. c4 {looks sharper.} Bh4 16. Nxc5 Bxe1 17. Qxe1 f6 18. Nxe4 dxe4 19. Bc5) 15... Nxd2 {[%emt 0:07:43]} 16. Qxd2 {[%emt 0:01:30]} d4 {[%emt 0:02:39]} 17. Bf2 {[%emt 0:00:06]} Qd8 {[%emt 0:01:57]} (17... a5 $5) 18. Rad1 {[%emt 0:03:13]} Bg4 {[%emt 0:03:13]} 19. Rc1 {[%emt 0:01:38]} Qd5 {[%emt 0:03:25][%cal Oa7a5]} 20. c3 {[%emt 0:03:37][%cal Rc3d4]} Rfd8 {[%emt 0:07:51]} (20... d3 21. c4 Qd7 22. Nxc5 Bxc5 23. Bxc5 $16) (20... a5 $1 $15 {stays ahead.} 21. h3 (21. cxd4 c4 $17) 21... Be6) 21. cxd4 $16 {[%emt 0:04:46]} cxd4 {[%emt 0:07:18]} 22. Qxd4 {[%emt 0:03:21]} Qb5 {[%emt 0:00:40] [#]} ({Black should try} 22... Be6) 23. Qe4 $1 {[%emt 0:04:10] Black must now prevent f5.} Bb4 {[%emt 0:05:55]} 24. Re3 {[%emt 0:08:29]} (24. Qxc6 Qxc6 25. Rxc6 Bxe1 26. Bxe1 Rac8 27. Rxc8 Bxc8 $17) (24. Rxc6 Bxe1 25. Bxe1 Rac8 $17) 24... Rd1+ $2 {[%emt 0:06:59]} (24... Bd2 $16 {keeps fighting.}) 25. Rxd1 $18 {[%emt 0:02:27]} Bxd1 {[%emt 0:00:13]} 26. Qd3 {[%emt 0:02:06]} (26. e6 $18 {and White stays clearly on top. exf7+ is the strong threat.} f5 27. Qd4 Bxb3 28. Rg3 (28. axb3 Bc5 $15)) 26... Bxb3 {[%emt 0:03:16]} (26... Bg4 $16 27. a3 Qxd3 28. Rxd3 Bf5) 27. Qxb5 {[%emt 0:01:39]} ({Don't play} 27. axb3 h6 $16) ({Resist} 27. Qxb3 Bd2 $16) 27... cxb5 {[%emt 0:00:21]} 28. Rxb3 $16 {[%emt 0:00:13][%mdl 4096] Endgame KRB-KRB} Bd2 {[%emt 0:01:01]} 29. Rxb5 {[%emt 0:00:46][%cal Of2a7] [#] Hoping for Bxa7!} Bxf4 $2 {[%emt 0:00:16]} (29... a6 {might work better.} 30. Rc5 Bxf4) 30. Bxa7 $18 {[%emt 0:01:20]} h6 $2 {[%emt 0:00:49]} (30... Bc1 31. b4 Bd2) 31. Rb8+ {[%emt 0:00:20]} Rxb8 {[%emt 0:00:53]} 32. Bxb8 {[%emt 0:00:05] KB-KB} f6 {[%emt 0:00:18]} 33. g3 {[%emt 0:00:27]} Be3+ {[%emt 0:01:14]} 34. Kg2 {[%emt 0:00:54] Strongly threatening b4.} Bd4 {[%emt 0:00:24]} 35. b4 {[%emt 0:02:31]} fxe5 {[%emt 0:00:51]} 36. a4 {[%emt 0:00:15][%cal Ba2a4,Ba4a5][%mdl 32] Intending a5 and mate.} e4 {[%emt 0:04:15]} 37. a5 {[%emt 0:00:38] White mates.} Kf7 {[%emt 0:01:48]} 38. a6 {[%emt 0:00:15]} Ke6 {[%emt 0:01:56]} 39. a7 {[%emt 0:00:13]} Bxa7 {[%emt 0:00:12]} 40. Bxa7 {[%emt 0:00:11] KB-K3P} Kd6 {[%emt 0:00:31]} 41. Kf2 {[%emt 0:30:16]} g5 {[%emt 0:30:29]} 42. Ke3 {[%emt 0:00:11]} Kd5 {[%emt 0:00:20]} 43. b5 {[%emt 0:00:14]} h5 {[%emt 0:00:24]} 44. b6 {[%emt 0:00:10]} h4 {[%emt 0:01:10]} 45. b7 {[%emt 0:00:10]} hxg3 {[%emt 0:00:19]} 46. b8=Q {[%emt 0:00:30] Weighted Error Value: White=0.16 (very precise) /Black=0.52} 1-0

[Event "44th Chess Olympiad Open 2022"]
[Site "Chennai"]
[Date "2022.08.05"]
[Round "7.70"]
[White "Lesbros Bernard"]
[Black "Fates, Omer Salah"]
[Result "1-0"]
[ECO "E62"]
[WhiteElo "1865"]
[BlackElo "1940"]
[Annotator "TA"]
[PlyCount "43"]
[EventDate "2022.07.29"]
[EventType "team-tourn"]
[EventCountry "IND"]
[SourceTitle "playchess.com"]
[Source "ChessBase"]
[SourceQuality "1"]
[WhiteTeam "Senegal"]
[BlackTeam "Libya"]
[WhiteTeamCountry "SEN"]
[BlackTeamCountry "LBY"]
[TimeControl "40/5400+30:1800+30"]

{[%evp 13,43,32,76,54,81,59,62,42,43,27,28,17,22,5,18,13,16,5,377,55,376,378,380,388,387,386,454,439,498,485,482,466]} 1. Nf3 {[%emt 0:00:03]} Nf6 {[%emt 0:00:09]} 2. c4 {[%emt 0:00:11]} g6 {[%emt 0:01:11]} 3. g3 {[%emt 0:00:44]} Bg7 {[%emt 0:00:21]} 4. Bg2 {[%emt 0:00:07]} d6 {[%emt 0:01:05]} 5. d4 {[%emt 0:00:15]} O-O {[%emt 0:00:40]} 6. O-O {[%emt 0:00:40]} c6 {[%emt 0:01:48]} 7. Nc3 {[%emt 0:00:10]} Bd7 {[%emt 0:01:10] Recently 7...Bf5 got a lot of attention.} 8. Re1 {[%emt 0:03:17] E62: King's Indian: Fianchetto: 6...c6 and Panno Variation (6...Nc6) without ...a6.} Qc7 {[%emt 0:04:12] [#]} 9. e4 $146 {[%emt 0:02:49]} ({Predecessor:} 9. b3 Re8 10. Ba3 Qa5 11. Bb2 Qh5 12. e4 e5 13. Ne2 Nxe4 14. dxe5 dxe5 15. Nh4 Ng5 {1-0 (44) Toren,K (1736)-Yenicirak,G (1636) Konya 2019}) 9... e5 {[%emt 0:01:06]} 10. b3 {[%emt 0:06:09] White is slightly better.} Re8 {[%emt 0:04:43]} 11. Bb2 {[%emt 0:01:28]} Na6 {[%emt 0:05:23]} 12. Rc1 {[%emt 0:06:44]} Bg4 {[%emt 0:01:50]} 13. Qd2 {[%emt 0:07:34]} (13. d5 {with more complications.} cxd5 14. Nxd5 Nxd5 15. cxd5 Qd7 16. Ba3) 13... Bxf3 {[%emt 0:03:12]} (13... Qa5 {is more complex.} 14. d5 cxd5 15. cxd5 Rac8) 14. Bxf3 {[%emt 0:00:09]} exd4 {[%emt 0:00:26]} 15. Qxd4 {[%emt 0:00:42]} Nxe4 $2 {[%emt 0:01:23][%mdl 8192] [#]} 16. Qxg7+ $3 $18 {[%emt 0:00:18][%mdl 512]} Kxg7 {[%emt 0:00:36]} 17. Nd5+ {[%emt 0:00:07][%mdl 64] Discovered Attack} f6 {[%emt 0:20:10]} 18. Nxc7 {[%emt 0:01:28]} Nxc7 {[%emt 0:00:52]} 19. Rxe4 {[%emt 0:02:37]} ({Don't play} 19. Bxe4 Kf7 20. f4 f5 $18) 19... Ne6 {[%emt 0:03:45]} 20. h4 {[%emt 0:04:33] White is clearly winning.} Nc5 {[%emt 0:00:00]} 21. Rxe8 {[%emt 0:02:02]} Rxe8 {[%emt 0:01:44]} 22. Rd1 {[%emt 0:00:33] Prevents Nd3.  Weighted Error Value: White=0.10 (very precise) /Black=0.70} 1-0

[Event "44th Chess Olympiad Open 2022"]
[Site "Chennai"]
[Date "2022.08.05"]
[Round "7.70"]
[White "Badji, Sekou Aransbene"]
[Black "Naser Eldean, Ahmed"]
[Result "0-1"]
[ECO "E61"]
[WhiteElo "1732"]
[BlackElo "1941"]
[Annotator "TA"]
[PlyCount "80"]
[EventDate "2022.07.29"]
[EventType "team-tourn"]
[EventCountry "IND"]
[SourceTitle "playchess.com"]
[Source "ChessBase"]
[SourceQuality "1"]
[WhiteTeam "Senegal"]
[BlackTeam "Libya"]
[WhiteTeamCountry "SEN"]
[BlackTeamCountry "LBY"]
[TimeControl "40/5400+30:1800+30"]

{[%evp 12,80,24,32,42,20,38,46,49,36,45,35,38,23,122,66,85,100,96,102,102,79,77,74,83,73,83,62,60,45,73,61,102,104,81,79,93,82,66,20,21,-14,29,-93,-93,-155,-145,-212,-210,-407,-431,-366,-333,-685,-684,-684,-683,-683,-679,-652,-637,-29979,-29980,-29988,-29989,-29991,-29992,-29992,-29993,-29995,-29996]} 1. d4 {[%emt 0:00:03]} Nf6 {[%emt 0:00:06]} 2. c4 {[%emt 0:00:38]} g6 {[%emt 0:00:07]} 3. Nf3 {[%emt 0:01:15]} Bg7 {[%emt 0:00:09]} 4. Nc3 {[%emt 0:00:31]} O-O {[%emt 0:00:10]} 5. Bf4 {[%emt 0:04:42]} d6 {[%emt 0:00:29]} 6. e3 {[%emt 0:00:57]} Nbd7 {[%emt 0:02:03]} 7. Be2 {[%emt 0:00:32]} a6 {[%emt 0:01:27] 7...b6 gains popularity. E61: King's Indian: Early deviations for White, including Smyslov System.} 8. h3 {[%emt 0:01:50]} Qe8 {[%emt 0:00:24]} 9. O-O {[%emt 0:01:54]} e5 {[%emt 0:00:11] White is slightly better.} 10. Bh2 {[%emt 0:02:21]} b6 {[%emt 0:00:52]} 11. Rc1 {[%emt 0:00:58]} Bb7 {[%emt 0:00:00]} 12. d5 {[%emt 0:02:20] [#]} e4 $146 {[%emt 0:06:31]} (12... Nc5 $11) ({Predecessor:} 12... Qe7 13. e4 Bh6 14. Ra1 Bc8 15. Bd3 Nh5 16. Bc2 Ng7 17. Re1 Nf6 18. Ba4 Nfe8 {0-1 (53) Kaushika,S (1205)-Dhyana,P (1969) Sharjah 2020}) 13. Nd2 {[%emt 0:00:26]} (13. Nd4 $16) 13... a5 {[%emt 0:00:31]} 14. a3 {[%emt 0:02:54]} Qe7 {[%emt 0:01:52]} 15. Qc2 {[%emt 0:04:19]} Rfe8 {[%emt 0:04:20]} 16. Bg3 {[%emt 0:03:49]} h6 {[%emt 0:06:55]} 17. Nb5 {[%emt 0:05:36]} Nc5 {[%emt 0:09:30]} 18. b4 {[%emt 0:06:57]} Na6 {[%emt 0:00:00]} 19. Rb1 {[%emt 0:00:32]} Bc8 {[%emt 0:09:52]} 20. Bh4 {[%emt 0:12:12]} g5 {[%emt 0:03:18]} 21. Bg3 {[%emt 0:00:20]} Bf5 {[%emt 0:03:00]} 22. Nd4 {[%emt 0:01:12]} Bg6 {[%emt 0:00:26]} 23. Nc6 {[%emt 0:00:43]} Qd7 {[%emt 0:00:36]} 24. bxa5 {[%emt 0:07:16]} bxa5 {[%emt 0:01:39]} 25. Nxa5 {[%emt 0:00:43]} (25. Nb3 $14) 25... Nc5 $11 {[%emt 0:00:11]} 26. Nab3 {[%emt 0:04:46] And now Nxc5 would win.} Nd3 {[%emt 0:08:22]} (26... Qa4 $5 {[%cal Rf6d7]}) 27. Bxd3 {[%emt 0:06:45]} (27. Nd4 $11) 27... exd3 $17 {[%emt 0:00:06]} 28. Qa2 {[%emt 0:01:24] [#]} (28. Qc1 $142) 28... Qa4 $1 {[%emt 0:04:38] Black is much more active.} 29. Nd4 {[%emt 0:10:43]} (29. Rfd1 $17 {is a better defense.}) 29... Nh5 $19 {[%emt 0:00:13]} ({Stronger than} 29... Qxa3 30. Qxa3 Rxa3 31. N4f3 $17) 30. Rfe1 $2 {[%emt 0:05:57]} (30. Bh2 Bxd4 31. exd4) 30... Nxg3 {[%emt 0:03:21]} 31. fxg3 {[%emt 0:00:06]} Rxe3 {[%emt 0:03:25]} ({Not} 31... Qxa3 $2 32. Qxa3 Rxa3 33. N4f3 $19) 32. Nb5 {[%emt 0:02:00] [#]} (32. N2f3 Ree8 33. Rbc1) 32... Rxe1+ {[%emt 0:02:43]} 33. Rxe1 {[%emt 0:00:14]} Qc2 {[%emt 0:00:11]} 34. Qxc2 {[%emt 0:02:31]} dxc2 {[%emt 0:00:05]} 35. Nb3 {[%emt 0:02:11]} Bb2 {[%emt 0:05:02]} 36. Nxc7 {[%emt 0:02:00]} Rxa3 {[%emt 0:02:57] Black mates.} 37. Nc1 {[%emt 0:03:39]} Ra1 {[%emt 0:00:00]} 38. Nb5 {[%emt 0:00:54]} Rxc1 {[%emt 0:00:00]} 39. Rxc1 {[%emt 0:00:07]} Bxc1 {[%emt 0:00:00]} 40. Nxd6 {[%emt 0:01:10]} Be3+ {[%emt 0:00:00] Weighted Error Value: White=0.55/Black=0.10 (very precise)} 0-1